Cogmind - Beta 10.2 @@@ ROGUE MODE // 2021.12.08 @ 21:30:03 Player: Maha Result: Self-destructed Performance ------------- Evolutions (1) 500 Regions Visited (2) 400 Robots Destroyed (23) 115 Value Destroyed (473) 473 Prototype IDs (3) 60 Alien Tech Used (0) 0 Bonus (0) 0 TOTAL SCORE: 1548 Bonus ------- None Cogmind --------- Core Integrity 375/400 Matter 300/300 Energy 100/100 System Corruption 0% Temperature Cool (0) Movement Treading (160) Location -9/Materials Parts ------- > --- POWER (1) -------- (None) > --- PROPULSION (2) --- Light Treads > --- UTILITY (3) ------ Small Storage Unit Small Storage Unit Visual Processing Unit > --- WEAPON (3) ------- Heavy Assault Rifle > --- INVENTORY (8) ---- Improved Ion Engine Light Treads Medium Matter Pod (100) ECM Suite Grenade Launcher Datajack Mining Claw Peak State ------------ > --- POWER ------------ Backup Power I > --- PROPULSION ------- Light Treads Light Treads > --- UTILITY ---------- Small Storage Unit Small Storage Unit Visual Processing Unit > --- WEAPON ----------- Light EM Pulse Cannon Particle Cannon Heavy Assault Rifle > --- INVENTORY -------- Improved Ion Engine Light Treads Medium Matter Pod ECM Suite Grenade Launcher Datajack Mining Claw [Rating: 13] Favorites ----------- Power Ion Engine Engine Ion Engine Propulsion Compact Wheel Treads Light Treads Wheel Compact Wheel Hover Unit Backup Propulsion I Utility Small Storage Unit Storage Small Storage Unit Processor Visual Processing Unit Weapon Assault Rifle Energy Gun EM Pulse Gun Energy Cannon Particle Cannon Ballistic Gun Assault Rifle Slashing Weapon Mining Claw Special Melee Weapon Datajack Build | -11 -10 -9 ------- Run | Scr Mat Mat Slots Evolved 2 | . . 2 Power . | . . . Propulsion . | . . . Utility 1 | . . 1 Weapon 1 | . . 1 Parts Attached 21 | 7 6 8 Power 2 | 1 1 . Engine 2 | 1 1 . Core . | . . . Reactor . | . . . Propulsion 8 | 2 3 3 Treads 3 | . . 3 Leg . | . . . Wheel 5 | 2 3 . Hover . | . . . Flight . | . . . Utility 3 | 2 . 1 Device . | . . . Storage 2 | 2 . . Processor 1 | . . 1 Hackware . | . . . Protection . | . . . Artifact . | . . . Weapon 8 | 2 2 4 Energy Gun 1 | 1 . . Energy Cannon 2 | . . 2 Ballistic Gun 3 | 1 1 1 Ballistic Cannon . | . . . Launcher . | . . . Special Weapon . | . . . Impact Weapon . | . . . Slashing Weapon 1 | . . 1 Piercing Weapon . | . . . Special Melee Weapon 1 | . 1 . Unidentified Prototypes . | . . . Parts Lost 11 | . 6 5 Power 3 | . 1 2 Propulsion 5 | . 3 2 Utility . | . . . Weapon 3 | . 2 1 Highest Loss Streak 4 | . 3 4 Average Slot Usage (%) 91 | . 95 85 Engine 11 | . 14 7 Treads 4 | . . 9 Wheel 15 | . 25 3 Storage 25 | . 28 22 Processor 4 | . . 11 Energy Gun 4 | . 8 . Energy Cannon 4 | . . 9 Ballistic Gun 10 | . 17 2 Slashing Weapon 3 | . . 9 Special Melee Weapon 4 | . . 9 Naked Turns . | . . . Heaviest Build 20 | 17 17 20 Greatest Support 40 | 32 32 40 Greatest Overweight (x) 3 | . 1 3 Average Overweight (x) . | . . . Largest Inventory Capacity 8 | 8 8 8 Average Capacity 7 | 6 8 8 Most Carried 8 | 4 8 7 Average Carried 5 | 1 6 4 Final Capacity 8 | 8 8 8 Final Carried 7 | 3 5 7 Class Distribution -------------------- 91% | Mutant 8% | Scavenger-Mutant Dominant Class ---------------- Mutant | -10/Materials Mutant | -9/Materials Resources | -11 -10 -9 ----------- Run | Scr Mat Mat Matter Collected 718 | 291 314 113 Remotely . | . . . Salvage Created 840 | 70 427 343 Parts 62 | 2 34 26 Haulers Intercepted 2 | . 1 1 Recyclers Shooed 2 | . 1 1 Parts Field Recycled . | . . . Retrieved Matter . | . . . Parts Self-Destructed . | . . . Prevented . | . . . Kills | -11 -10 -9 ------- Run | Scr Mat Mat Combat Hostiles Destroyed 16 | . 12 4 Melee 1 | . . 1 Guns 13 | . 12 1 Cannons 2 | . . 2 Classes Destroyed 8 | 1 5 2 Worker 1 | . 1 . Builder 1 | . . 1 Hauler 2 | . 1 1 Recycler 2 | 1 . 1 Watcher 1 | . 1 . Swarmer 6 | . 6 . Grunt 8 | . 6 2 Sentry 2 | . . 2 Best Kill Streak 3 | 1 3 3 Combat Bots Only 3 | . 3 2 Max Kills in Single Turn 1 | 1 1 1 Gunslinging . | . . . Exploded . | . . . Melee 1 | . . 1 Uniques/NPCs Destroyed . | . . . Combat | -11 -10 -9 -------- Run | Scr Mat Mat Damage Taken 853 | . 571 282 Core 128 | . 103 25 Absorbed by Shields . | . . . Core Remaining (%) 79 | 100 58 . Volleys Fired 61 | 7 49 5 Largest 3 | 2 2 3 Hottest 147 | 60 60 147 Shots Fired 115 | 14 91 10 Gun 109 | 14 91 4 Cannon 6 | . . 6 Launcher . | . . . Special . | . . . Kinetic 86 | 7 75 4 Thermal 4 | . . 4 Explosive . | . . . Electromagnetic 25 | 7 16 2 Robot Hit Streak 8 | 3 8 6 Robot Miss Streak 3 | 2 3 1 Penetration Max . | . . . Secondary Targets 1 | . 1 . Max Gunslinging Chain 1 | . 1 . Shots Hit Robots 92 | 8 64 20 Core Hits 32 | 2 22 8 Critical Hits . | . . . Critical Kills . | . . . Critical Parts Destroyed . | . . . Melee Attacks 25 | . 6 19 Impact . | . . . Slashing 16 | . . 16 Piercing . | . . . Sneak Attacks 12 | . 6 6 Combat Hostiles . | . . . Follow-up Attacks . | . . . Damage Inflicted 1258 | 65 669 524 Guns 775 | 65 669 41 Cannons 62 | . . 62 Explosions . | . . . Melee 421 | . . 421 Ramming . | . . . Kinetic 570 | 28 501 41 Thermal 62 | . . 62 Explosive . | . . . Electromagnetic 205 | 37 168 . Impact . | . . . Slashing 421 | . . 421 Piercing . | . . . Highest Corruption . | . . . Average Corruption . | . . . Corruption Purged . | . . . Overload Shots . | . . . Overflow Damage 82 | . . 82 Projectiles . | . . . Explosions . | . . . Melee 82 | . . 82 Knockbacks . | . . . Impact . | . . . Kinetic . | . . . Secondary . | . . . Self-Inflicted Damage . | . . . Shots . | . . . Rammed . | . . . Targets Rammed . | . . . Kicked . | . . . Crushed . | . . . Highest Temperature 120 | . 33 120 Average Temperature 34 | . 14 62 Received Heat Transfer 228 | . 120 108 Siege Activations . | . . . Robots Corrupted . | . . . Combat Hostiles . | . . . Parts Fried . | . . . Impact Corruptions . | . . . Robots Melted . | . . . Combat Hostiles . | . . . Parts Melted . | . . . Heat Transferred 111 | . . 111 Parts Sabotaged . | . . . Parts Stolen . | . . . Parts Stripped . | . . . Power Chain Reactions . | . . . Missiles Intercepted . | . . . Alert | -11 -10 -9 ------- Run | Scr Mat Mat Peak Influence 241 | 5 241 140 Initial 33 | . 3 33 Average 67 | 1 91 51 Maximum Alert Level 1 | . 1 . Low Security (%) 96 | 100 92 100 Level 1 3 | . 7 . Level 2 . | . . . Level 3 . | . . . Level 4 . | . . . Level 5 . | . . . High Security . | . . . Max Security . | . . . Squads Dispatched 3 | . 2 1 Investigation . | . . . Extermination . | . . . Reinforcement 3 | . 2 1 Assault . | . . . Garrison . | . . . Intercept . | . . . Construction Impeded . | . . . Haulers Reinforced . | . . . Stealth | -11 -10 -9 --------- Run | Scr Mat Mat Distress Signals . | . . . Communications Jammed . | . . . Distress Signals . | . . . Times Spotted 23 | . 17 6 Peak Tracking Total 5 | . 5 4 Tactical Retreats . | . . . Traps | -11 -10 -9 ------- Run | Scr Mat Mat Traps Triggered 2 | . . 2 Indirectly . | . . . Trap Hack Attempts . | . . . Triggered . | . . . Disarmed . | . . . Reprogrammed . | . . . Reused . | . . . Traps Extracted . | . . . Installed . | . . . Triggered . | . . . Machines | -11 -10 -9 ---------- Run | Scr Mat Mat Machines Disabled . | . . . Max in Single Turn . | . . . Machines Sabotaged . | . . . Garrisons Compromised . | . . . Overloaded Fab Kills . | . . . Fab Network Shutdowns . | . . . Hacking | -11 -10 -9 --------- Run | Scr Mat Mat Machines Accessed 6 | . 3 3 Terminals 5 | . 3 2 Fabricators . | . . . Repair Stations 1 | . . 1 Recycling Units . | . . . Scanalyzers . | . . . Garrison Access . | . . . Total Hacks 9 | . 4 5 Successful 4 | . 2 2 Failed 5 | . 2 3 Catastrophic . | . . . Database Lockouts . | . . . Manual . | . . . Terminals 8 | . 4 4 Fabricators . | . . . Repair Stations 1 | . . 1 Recycling Units . | . . . Scanalyzers . | . . . Garrison Access . | . . . Terminal Hacks 3 | . 2 1 Prototype ID Bank 1 | . 1 . Locate Traps 1 | . 1 . Zone Layout 1 | . . 1 Fabricator Hacks . | . . . Repair Station Hacks 1 | . . 1 Refit 1 | . . 1 Recycling Unit Hacks . | . . . Scanalyzer . | . . . Garrison Access Hacks . | . . . Unauthorized Hacks . | . . . Terminals . | . . . Fabricators . | . . . Repair Stations . | . . . Recycling Units . | . . . Scanalyzers . | . . . Garrison Access . | . . . Data Cores Recovered . | . . . Used . | . . . Hacking Detections 4 | . 2 2 Full Trace Events . | . . . Feedback Events . | . . . Feedback Blocked . | . . . Robot Schematics Acquired . | . . . Robots Built . | . . . Matter . | . . . Time . | . . . Total Robot Build Rating . | . . . Part Schematics Acquired . | . . . Parts Built . | . . . Matter . | . . . Time . | . . . Total Part Build Rating . | . . . Parts Repaired . | . . . Time . | . . . Parts Recycled . | . . . Recycled Matter . | . . . Retrieved Matter . | . . . Retrieved Components . | . . . Parts Scanalyzed . | . . . Part Schematics Acquired . | . . . Parts Damaged . | . . . Bothacking | -11 -10 -9 ------------ Run | Scr Mat Mat Used RIF Installer . | . . . Robots Hacked 5 | . 3 2 Non-combat 4 | . 3 1 Combat 1 | . . 1 Robot Hacks Applied 7 | . 4 3 parse_system 3 | . 1 2 no_distress 4 | . 3 1 Relay Couplers Released . | . . . Robots Rewired . | . . . Allies Hacked . | . . . Hacks Repelled . | . . . Allies | -11 -10 -9 -------- Run | Scr Mat Mat Total Allies . | . . . Largest Group . | . . . Highest-Rated Group . | . . . Highest-Rated Ally . | . . . Total Orders . | . . . Ally Attacks . | . . . Total Damage . | . . . Kills . | . . . Allies Corrupted . | . . . Allies Melted . | . . . Intel | -11 -10 -9 ------- Run | Scr Mat Mat Robot Analysis Total . | . . . Derelict Logs Recovered . | . . . Drone Launches . | . . . Drone Recoveries . | . . . Exploration | -11 -10 -9 ------------- Run | Scr Mat Mat Turns Passed 1015 | 92 523 400 Spaces Moved 557 | 56 320 181 Core 9 | 3 . 6 Treads 142 | . . 142 Legs . | . . . Wheels 401 | 53 320 28 Hover 5 | . . 5 Flight . | . . . Fastest Speed 50 | 50 80 80 Average Speed 114 | 97 95 151 Slowest Speed 260 | 100 110 260 Overloaded Moves . | . . . Propulsion Burnouts . | . . . Robots Hopped . | . . . Cave-ins Triggered . | . . . Exploration Rate (%) 22 | 6 40 20 Regions Visited 2 Branch Regions . Pre-discovered Areas . | . . . Known Exits Taken . | . . . Unknown Exits Taken 2 | 1 1 . Scrap Searched . | . . . Spaces Dug 3 | . . 3 Terrain Destroyed 3 | . . 3 Melee 3 | . . 3 Projectile . | . . . AOE . | . . . Terrain Rammed . | . . . Walls Destroyed . | . . . Machines Disabled . | . . . Actions | -11 -10 -9 --------- Run | Scr Mat Mat Total 779 | 79 439 261 Wait 90 | . 49 41 Move 555 | 55 319 181 Hop . | . . . Pick Up 25 | 10 9 6 Fast Attach . | . . . Attach 18 | 7 6 5 Detach . | . . . Swap 3 | . . 3 Drop 2 | . 1 1 Fire 61 | 7 49 5 Melee 25 | . 6 19 Ram . | . . . Kick . | . . . Crush . | . . . Escape Stasis . | . . . Rewire . | . . . Trap . | . . . Miscellaneous . | . . . Route ------- -11/Scrapyard -10/Materials (discovered 2 exits: *Mat / [*Min]) -9/Materials (discovered 1 exit: [*Min]) History --------- Turn | Location | Event 25 | -11/Scrapyard | Discovered new exit (range 15) 93 | -11/Scrapyard | Entered Materials 304 | -10/Materials | Discovered new exit (range 3) 306 | -10/Materials | Build established: Mutant 345 | -10/Materials | Discovered new exit (range 7) 441 | -10/Materials | Lost 3 parts (2n1w) 551 | -10/Materials | Lost 3 parts (1p1n1w) 616 | -10/Materials | Entered another Materials area 616 | -9/Materials | Evolved 2 slots: Utility x1, Weapon x1 713 | -9/Materials | Lost 4 parts (1p2n1w) 970 | -9/Materials | Discovered new exit (range 13) 1016 | -9/Materials | Self-destructed Last Messages --------------- 00979_ Acquired Hvy. Assault Rifle. 00980_ K-01 Serf collects debris. 00982_ ALERT: Hostiles spotted, dispatching reinforcements to Terminal M011. 00983_ G-34 Mercenary destroyed. 00984_ K-01 Serf collects debris. 00985_ R-06 Scavenger collects Welding Torch. 00986_ K-01 Serf collects debris. 00988_ R-06 Scavenger collects Wheel. 00989_ G-34 Mercenary destroyed. 00989_ K-01 Serf collects debris. 00992_ Acquired 49 matter. 01013_ Triggered Blade Trap. 01013_ Massive razor-sharp blades shoot up from within the floor. 01013_ Lgt. EM Pulse Cannon severed. 01013_ Particle Cannon severed. 01015_ Triggered Blade Trap. 01015_ Massive razor-sharp blades shoot up from within the floor. 01015_ Backup Power I severed. 01015_ Backup Power I disintegrated. 01015_ Lgt. Treads severed. Map ----- +----------------------------------------------------+ | ?????????????????????????????????????????????????? | | ?????????????????????????????????????????????????? | | ?????????????????????????????????????????????????? | | ?????????????????????????????????????????????????? | | ?????????????????????????????????????????????????? | | ?????????????????????????????????????????????????? | | ?????????????????????????????????????????????????? | | ?????????????????????????????????????????????????? | | ??????????????????????? ?????????????????????? | | ??????????????????????? k ?????????????????????? | | ??????????????????????? ?????????????????????? | | ??????????????????????? ????????????????????? | | ??????????????????????? =[?????????????????????? | | ???????????????????????# =!?????????????????????? | | ???????????????????????# ?????????????????????? | | ???????????????????????# ?????????????????????? | | ???????????????????????# #?????????????????????? | | ???????????????????????# #?????????????????????? | | ???????????????????????# #?????????????????????? | | ???????????????????????# #?????????????????????? | | ???????????????????????# #?????????????????????? | | ???????????????????????# #?????????????????????? | | ???????????????????????# #?????????????????????? | | ???????????????????????+ u +?????????????????????? | | ???????????????????????# #?????????????????????? | | ???????????????????????#=@ #?????????????????????? | | ??????????????????????## ] #################?????? | | ????????####+########## #????# #????????? | | ???###### u #????#""" #????????? | | ?? k o T #????#""" #????????? | | ??###### #???##""" #????????? | | ??# #### #???## #????????? | | ??# #??#######???## #????????? | | ? #?????????????####+############ | | ??# #??????##?????# | | ??# ##########=############### | | ??## ??????????#!*%=% !%*%! | | ????????????????# !!%*#################### ##### | | ????????????????# ==! #????###???????????# #???# | | ????????????????# #??????????????#####+##### | | ????????????????# #??????????????# ## | | ????????????????## ##??????????????# """ T # | | ?????????????????# #???????????????# """ # | | ?????????????????# #???????????????# """ # T | | ?????????????????# #???????????????# # | | ?????????????????# #???????######### """ # | | ????????????????? ??????? + """ ## | | ????????????????? ??????? ######## """ ## | | ????????????????! ??????? #??????# ## | | ????????????????" < ??????? #??###########+### | +----------------------------------------------------+ Best States ------------- Heat Dissipation 28 Energy Generation 10 Energy Capacity 250 Matter Stores 300 Matter Capacity 300 Sight Range 18 Terrain Scan Density 10 Evasion (%) 44 Recoil Reduction 2 Item Schematics ----------------- None Robot Schematics ------------------ None Fabricated ------------ Nothing Alien Tech Used ----------------- None Achievements -------------- None Challenges ------------ None Game ------ Seed OverloadBiomechanicalBlaster Manual? 0 Play Time 00:10:30 Cumulative 31.1 hours Start 2021.12.08 @ 18:00:02 End 2021.12.08 @ 21:30:03 Sessions 2 Manual Loads 0 Difficulty Rogue Special Mode None Game No. 32 Rogue 32 Adventurer 0 Explorer 0 Win Type - Total 0 Types 0/0/0/0/0/0/0/0/0 Lore% 39 Gallery% 36 Achievement% 31 Wizard Run 0 Options --------- ASCII 0 Keyboard 0 Movement Numpad Keybinds 0 Fullscreen 1 Font 12/Smallcaps Map View 83x54 Tactical HUD 1 Map Filters NONE Filters NONE Steam 1 RUN: 7353c889-9a7f-402c-a87a-64ec0d7be059